[Event "Titled Tuesday Blitz May 10 Early 2022"]
[White "Petrov, Martin"]
[Black "Bas Mas, Jose Joaquin"]
[WhiteFideId "2911086"]
[BlackFideId "22219064"]
[WhiteElo "2343"]
[BlackElo "2233"]
[Result "1-0"]
[Round "03"]
[TimeControl "180+1"]
[Date "2022.05.11"]
[WhiteClock "0:00:11"]
[BlackClock "0:00:01"]

1. Nf3 {[%clk 0:03:00]}  g6 {[%clk 0:02:52]} 2. d4 {[%clk 0:02:58]}  Bg7 {[%clk 0:02:53]} 3. e4 {[%clk 0:02:57]}  d5 {[%clk 0:02:47]} 4. exd5 {[%clk 0:02:56]}  Nf6 {[%clk 0:02:46]} 5. c4 {[%clk 0:02:53]}  O-O {[%clk 0:02:46]} 6. Nc3 {[%clk 0:02:50]}  a6 {[%clk 0:02:35]} 7. Be2 {[%clk 0:02:41]}  b5 {[%clk 0:02:34]} 8. b3 {[%clk 0:02:12]}  b4 {[%clk 0:02:06]} 9. Na4 {[%clk 0:02:11]}  c6 {[%clk 0:02:01]} 10. O-O {[%clk 0:02:10]}  cxd5 {[%clk 0:01:50]} 11. c5 {[%clk 0:02:10]}  Ne4 {[%clk 0:01:47]} 12. Bf4 {[%clk 0:02:05]}  Nc6 {[%clk 0:01:34]} 13. a3 {[%clk 0:02:02]}  Bf5 {[%clk 0:01:10]} 14. Nb6 {[%clk 0:01:36]}  Ra7 {[%clk 0:01:10]} 15. Be3 {[%clk 0:01:29]}  Nc3 {[%clk 0:01:08]} 16. Qd2 {[%clk 0:01:29]}  e5 {[%clk 0:01:01]} 17. dxe5 {[%clk 0:01:23]}  d4 {[%clk 0:01:01]} 18. Bg5 {[%clk 0:01:21]}  Qb8 {[%clk 0:00:53]} 19. Bc4 {[%clk 0:01:17]}  Ne4 {[%clk 0:00:49]} 20. Qe2 {[%clk 0:01:09]}  Nxe5 {[%clk 0:00:43]} 21. Bf4 {[%clk 0:00:56]}  Nxf3+ {[%clk 0:00:20]} 22. Qxf3 {[%clk 0:00:56]}  Qd8 {[%clk 0:00:18]} 23. axb4 {[%clk 0:00:55]}  h5 {[%clk 0:00:16]} 24. h3 {[%clk 0:00:55]}  Re8 {[%clk 0:00:16]} 25. Rfe1 {[%clk 0:00:38]}  d3 {[%clk 0:00:15]} 26. Rad1 {[%clk 0:00:36]}  Nc3 {[%clk 0:00:11]} 27. Rxe8+ {[%clk 0:00:19]}  Qxe8 {[%clk 0:00:12]} 28. Rxd3 {[%clk 0:00:19]}  Bxd3 {[%clk 0:00:11]} 29. Qxd3 {[%clk 0:00:20]}  Re7 {[%clk 0:00:09]} 30. Kh2 {[%clk 0:00:17]}  Ne2 {[%clk 0:00:07]} 31. Bd6 {[%clk 0:00:16]}  Be5+ {[%clk 0:00:06]} 32. Bxe5 {[%clk 0:00:15]}  Rxe5 {[%clk 0:00:07]} 33. Nd5 {[%clk 0:00:15]}  Kg7 {[%clk 0:00:04]} 34. Qf3 {[%clk 0:00:14]}  Qe6 {[%clk 0:00:03]} 35. Nf4 {[%clk 0:00:13]}  Qe7 {[%clk 0:00:01]} 36. Nd5 {[%clk 0:00:11]} 1-0


[Site "https://www.chess.com"]

[Event "Titled Tuesday Blitz May 10 Early 2022"]
[White "Petrova, Irina"]
[Black "Turutin, Alexander"]
[WhiteFideId "14124122"]
[BlackFideId "4180623"]
[WhiteElo "1993"]
[BlackElo "2402"]
[Result "0-1"]
[Round "03"]
[TimeControl "180+1"]
[Date "2022.05.11"]
[WhiteClock "0:00:36"]
[BlackClock "0:00:30"]

1. e4 {[%clk 0:03:00]}  c6 {[%clk 0:02:58]} 2. d4 {[%clk 0:02:59]}  d5 {[%clk 0:02:58]} 3. e5 {[%clk 0:02:59]}  Bf5 {[%clk 0:02:57]} 4. h4 {[%clk 0:02:58]}  Qb6 {[%clk 0:02:56]} 5. Nc3 {[%clk 0:02:43]}  h6 {[%clk 0:02:43]} 6. g4 {[%clk 0:02:41]}  Bd7 {[%clk 0:02:44]} 7. f4 {[%clk 0:02:39]}  e6 {[%clk 0:02:44]} 8. Nf3 {[%clk 0:02:39]}  c5 {[%clk 0:02:44]} 9. Ne2 {[%clk 0:02:32]}  Nc6 {[%clk 0:02:33]} 10. c3 {[%clk 0:02:32]}  cxd4 {[%clk 0:02:31]} 11. Nexd4 {[%clk 0:02:31]}  Nxd4 {[%clk 0:02:19]} 12. Nxd4 {[%clk 0:02:32]}  Ne7 {[%clk 0:02:19]} 13. Qb3 {[%clk 0:02:28]}  Qxb3 {[%clk 0:01:40]} 14. axb3 {[%clk 0:02:29]}  a6 {[%clk 0:01:40]} 15. Bb5 {[%clk 0:02:17]}  Rc8 {[%clk 0:01:33]} 16. Be2 {[%clk 0:02:02]}  Nc6 {[%clk 0:01:26]} 17. Nxc6 {[%clk 0:01:53]}  Bxc6 {[%clk 0:01:25]} 18. Rf1 {[%clk 0:01:45]}  Be7 {[%clk 0:01:21]} 19. h5 {[%clk 0:01:41]}  d4 {[%clk 0:01:16]} 20. cxd4 {[%clk 0:01:28]}  Bd5 {[%clk 0:01:13]} 21. Bc4 {[%clk 0:01:25]}  Bxc4 {[%clk 0:01:12]} 22. bxc4 {[%clk 0:01:26]}  Rxc4 {[%clk 0:01:12]} 23. Be3 {[%clk 0:01:21]}  Kd7 {[%clk 0:01:08]} 24. Ke2 {[%clk 0:01:18]}  Rhc8 {[%clk 0:01:07]} 25. Rfc1 {[%clk 0:01:18]}  Rc2+ {[%clk 0:01:07]} 26. Kd3 {[%clk 0:01:13]}  Rxb2 {[%clk 0:01:05]} 27. Rxc8 {[%clk 0:01:13]}  Kxc8 {[%clk 0:01:06]} 28. Rc1+ {[%clk 0:01:11]}  Kd7 {[%clk 0:01:05]} 29. g5 {[%clk 0:01:10]}  a5 {[%clk 0:00:58]} 30. gxh6 {[%clk 0:01:04]}  gxh6 {[%clk 0:00:57]} 31. f5 {[%clk 0:01:04]}  Rh2 {[%clk 0:00:57]} 32. Bxh6 {[%clk 0:00:52]}  Rxh5 {[%clk 0:00:55]} 33. fxe6+ {[%clk 0:00:51]}  fxe6 {[%clk 0:00:55]} 34. Bd2 {[%clk 0:00:49]}  a4 {[%clk 0:00:54]} 35. Ba5 {[%clk 0:00:48]}  Rh3+ {[%clk 0:00:49]} 36. Ke4 {[%clk 0:00:47]}  Rh4+ {[%clk 0:00:49]} 37. Kd3 {[%clk 0:00:46]}  Rh3+ {[%clk 0:00:49]} 38. Ke4 {[%clk 0:00:46]}  a3 {[%clk 0:00:43]} 39. Rc7+ {[%clk 0:00:42]}  Ke8 {[%clk 0:00:44]} 40. Rc8+ {[%clk 0:00:37]}  Kf7 {[%clk 0:00:42]} 41. Ra8 {[%clk 0:00:36]}  a2 {[%clk 0:00:31]} 42. Bb6 {[%clk 0:00:36]}  Ra3 {[%clk 0:00:30]} 0-1


[Site "https://www.chess.com"]

[Event "Titled Tuesday Blitz May 10 Early 2022"]
[White "Polanco Nunez, Yoel Estarling"]
[Black "Suleymanli, Suleyman"]
[WhiteFideId "6401783"]
[BlackFideId "13416375"]
[WhiteElo "2132"]
[BlackElo "1598"]
[Result "0-1"]
[Round "03"]
[TimeControl "180+1"]
[Date "2022.05.11"]
[WhiteClock "0:00:04"]
[BlackClock "0:01:33"]

1. Nf3 {[%clk 0:03:00]}  d5 {[%clk 0:02:59]} 2. g3 {[%clk 0:03:01]}  Nf6 {[%clk 0:03:00]} 3. Bg2 {[%clk 0:03:01]}  Bf5 {[%clk 0:03:01]} 4. O-O {[%clk 0:03:01]}  e6 {[%clk 0:03:01]} 5. d3 {[%clk 0:03:00]}  h6 {[%clk 0:03:01]} 6. c4 {[%clk 0:02:55]}  Be7 {[%clk 0:02:58]} 7. Qb3 {[%clk 0:02:55]}  Nc6 {[%clk 0:02:58]} 8. Nbd2 {[%clk 0:02:39]}  a6 {[%clk 0:02:55]} 9. a3 {[%clk 0:02:16]}  O-O {[%clk 0:02:50]} 10. Qa2 {[%clk 0:02:16]}  b5 {[%clk 0:02:49]} 11. cxd5 {[%clk 0:02:03]}  exd5 {[%clk 0:02:50]} 12. b3 {[%clk 0:02:01]}  Na5 {[%clk 0:02:41]} 13. Bb2 {[%clk 0:01:59]}  c5 {[%clk 0:02:39]} 14. Rac1 {[%clk 0:01:56]}  Rc8 {[%clk 0:02:34]} 15. Bc3 {[%clk 0:01:42]}  Nc6 {[%clk 0:02:32]} 16. Ne5 {[%clk 0:01:34]}  Nxe5 {[%clk 0:02:30]} 17. Bxe5 {[%clk 0:01:35]}  d4 {[%clk 0:02:30]} 18. Bxf6 {[%clk 0:01:20]}  Bxf6 {[%clk 0:02:29]} 19. Rc2 {[%clk 0:01:18]}  Qe7 {[%clk 0:02:23]} 20. Ne4 {[%clk 0:01:16]}  Be6 {[%clk 0:02:22]} 21. Nxf6+ {[%clk 0:01:12]}  Qxf6 {[%clk 0:02:23]} 22. Rfc1 {[%clk 0:01:06]}  Qe5 {[%clk 0:02:23]} 23. Bb7 {[%clk 0:01:02]}  Rc7 {[%clk 0:02:20]} 24. Bxa6 {[%clk 0:01:01]}  Rb8 {[%clk 0:02:00]} 25. a4 {[%clk 0:00:41]}  bxa4 {[%clk 0:01:59]} 26. Qxa4 {[%clk 0:00:42]}  Bxb3 {[%clk 0:01:57]} 27. Qa3 {[%clk 0:00:18]}  Bxc2 {[%clk 0:01:54]} 28. Rxc2 {[%clk 0:00:19]}  Rb1+ {[%clk 0:01:54]} 29. Rc1 {[%clk 0:00:19]}  Rxc1+ {[%clk 0:01:54]} 30. Qxc1 {[%clk 0:00:20]}  Qxe2 {[%clk 0:01:54]} 31. Bc4 {[%clk 0:00:19]}  Re7 {[%clk 0:01:53]} 32. Kg2 {[%clk 0:00:18]}  Rb7 {[%clk 0:01:49]} 33. Qf4 {[%clk 0:00:19]}  Qe7 {[%clk 0:01:45]} 34. h4 {[%clk 0:00:19]}  Qf6 {[%clk 0:01:42]} 35. Qe4 {[%clk 0:00:16]}  Re7 {[%clk 0:01:39]} 36. Qa8+ {[%clk 0:00:14]}  Kh7 {[%clk 0:01:37]} 37. Qa2 {[%clk 0:00:04]}  Qc6+ {[%clk 0:01:33]} 38. Kg1 {[%clk 0:00:04]}  Re1+ {[%clk 0:01:33]} 0-1


[Site "https://www.chess.com"]

[Event "Titled Tuesday Blitz May 10 Early 2022"]
[White "Qashashvili, Alexandre"]
[Black "Nguyen Hong Nhung"]
[WhiteFideId "13600842"]
[BlackFideId "12412201"]
[WhiteElo "2316"]
[BlackElo "1758"]
[Result "1/2-1/2"]
[Round "03"]
[TimeControl "180+1"]
[Date "2022.05.11"]
[WhiteClock "0:00:12"]
[BlackClock "0:00:33"]

1. e4 {[%clk 0:03:00]}  c5 {[%clk 0:02:59]} 2. Nc3 {[%clk 0:02:59]}  e6 {[%clk 0:02:59]} 3. Nf3 {[%clk 0:02:51]}  Nc6 {[%clk 0:02:59]} 4. d4 {[%clk 0:02:50]}  cxd4 {[%clk 0:03:00]} 5. Nxd4 {[%clk 0:02:51]}  Qc7 {[%clk 0:03:00]} 6. Nxc6 {[%clk 0:02:50]}  bxc6 {[%clk 0:03:01]} 7. Bd3 {[%clk 0:02:50]}  e5 {[%clk 0:02:58]} 8. O-O {[%clk 0:02:49]}  Bc5 {[%clk 0:02:58]} 9. Qe2 {[%clk 0:02:49]}  Nf6 {[%clk 0:02:58]} 10. Be3 {[%clk 0:02:49]}  d6 {[%clk 0:02:36]} 11. Bxc5 {[%clk 0:02:48]}  dxc5 {[%clk 0:02:37]} 12. h3 {[%clk 0:02:44]}  O-O {[%clk 0:02:35]} 13. Bc4 {[%clk 0:02:43]}  Rb8 {[%clk 0:02:32]} 14. b3 {[%clk 0:02:43]}  Qa5 {[%clk 0:02:32]} 15. Na4 {[%clk 0:02:38]}  Nd7 {[%clk 0:02:23]} 16. f4 {[%clk 0:02:35]}  exf4 {[%clk 0:02:18]} 17. Rxf4 {[%clk 0:02:36]}  Ne5 {[%clk 0:02:16]} 18. Raf1 {[%clk 0:02:29]}  Nxc4 {[%clk 0:02:14]} 19. Qxc4 {[%clk 0:02:27]}  Be6 {[%clk 0:02:07]} 20. Qxc5 {[%clk 0:02:25]}  Qd2 {[%clk 0:02:08]} 21. Qc3 {[%clk 0:02:12]}  Qe2 {[%clk 0:02:01]} 22. Nc5 {[%clk 0:02:03]}  Bc8 {[%clk 0:01:56]} 23. Qd3 {[%clk 0:02:01]}  Qh5 {[%clk 0:01:54]} 24. Qe3 {[%clk 0:01:45]}  Rb5 {[%clk 0:01:51]} 25. Nd3 {[%clk 0:01:41]}  Rg5 {[%clk 0:01:48]} 26. Kh2 {[%clk 0:01:09]}  Qg6 {[%clk 0:01:44]} 27. R1f2 {[%clk 0:01:07]}  Ra5 {[%clk 0:01:36]} 28. a4 {[%clk 0:01:05]}  Be6 {[%clk 0:01:33]} 29. Nc5 {[%clk 0:01:00]}  Bc8 {[%clk 0:01:31]} 30. Nd3 {[%clk 0:00:57]}  Rg5 {[%clk 0:01:29]} 31. R4f3 {[%clk 0:00:44]}  Re8 {[%clk 0:01:27]} 32. e5 {[%clk 0:00:42]}  h5 {[%clk 0:00:55]} 33. Qxa7 {[%clk 0:00:39]}  h4 {[%clk 0:00:49]} 34. Rxf7 {[%clk 0:00:27]}  Rxg2+ {[%clk 0:00:49]} 35. Rxg2 {[%clk 0:00:27]}  Qxf7 {[%clk 0:00:49]} 36. Qxf7+ {[%clk 0:00:27]}  Kxf7 {[%clk 0:00:50]} 37. Rf2+ {[%clk 0:00:24]}  Kg6 {[%clk 0:00:48]} 38. a5 {[%clk 0:00:20]}  Ba6 {[%clk 0:00:45]} 39. Rf4 {[%clk 0:00:17]}  Bxd3 {[%clk 0:00:44]} 40. cxd3 {[%clk 0:00:18]}  Rxe5 {[%clk 0:00:44]} 41. Rxh4 {[%clk 0:00:15]}  Rxa5 {[%clk 0:00:44]} 42. Rc4 {[%clk 0:00:14]}  c5 {[%clk 0:00:43]} 43. d4 {[%clk 0:00:14]}  cxd4 {[%clk 0:00:43]} 44. Rxd4 {[%clk 0:00:13]}  Ra2+ {[%clk 0:00:43]} 45. Kg3 {[%clk 0:00:13]}  Rb2 {[%clk 0:00:43]} 46. Rb4 {[%clk 0:00:13]}  Kh5 {[%clk 0:00:42]} 47. Rb5+ {[%clk 0:00:13]}  Kh6 {[%clk 0:00:42]} 48. Kh4 {[%clk 0:00:13]}  g6 {[%clk 0:00:39]} 49. Kg3 {[%clk 0:00:12]}  Kg7 {[%clk 0:00:37]} 50. h4 {[%clk 0:00:12]}  Kf6 {[%clk 0:00:37]} 51. Rb6+ {[%clk 0:00:12]}  Kf5 {[%clk 0:00:37]} 52. Rb5+ {[%clk 0:00:11]}  Kf6 {[%clk 0:00:36]} 53. Kg4 {[%clk 0:00:12]}  Rg2+ {[%clk 0:00:36]} 54. Kf3 {[%clk 0:00:11]}  Rh2 {[%clk 0:00:34]} 55. Kg3 {[%clk 0:00:12]}  Rb2 {[%clk 0:00:33]} 1/2-1/2


[Site "https://www.chess.com"]

[Event "Titled Tuesday Blitz May 10 Early 2022"]
[White "Quirke, Jeffrey"]
[Black "Lomaia, Diana"]
[WhiteFideId "2013029"]
[BlackFideId "13612476"]
[WhiteElo "2132"]
[BlackElo "1744"]
[Result "1-0"]
[Round "03"]
[TimeControl "180+1"]
[Date "2022.05.11"]
[WhiteClock "0:00:12"]
[BlackClock "0:00:05"]

1. d4 {[%clk 0:03:00]}  d5 {[%clk 0:02:59]} 2. Nf3 {[%clk 0:03:00]}  Nf6 {[%clk 0:02:59]} 3. c4 {[%clk 0:02:58]}  dxc4 {[%clk 0:03:00]} 4. e3 {[%clk 0:02:57]}  e6 {[%clk 0:03:00]} 5. Bxc4 {[%clk 0:02:57]}  c5 {[%clk 0:03:00]} 6. O-O {[%clk 0:02:54]}  a6 {[%clk 0:03:00]} 7. b3 {[%clk 0:02:51]}  Nc6 {[%clk 0:03:00]} 8. Bb2 {[%clk 0:02:51]}  cxd4 {[%clk 0:02:57]} 9. Nxd4 {[%clk 0:02:50]}  Be7 {[%clk 0:02:50]} 10. Be2 {[%clk 0:02:49]}  O-O {[%clk 0:02:48]} 11. Nxc6 {[%clk 0:02:49]}  bxc6 {[%clk 0:02:48]} 12. Bf3 {[%clk 0:02:47]}  Nd5 {[%clk 0:02:41]} 13. Nc3 {[%clk 0:02:43]}  Bf6 {[%clk 0:02:40]} 14. Qc1 {[%clk 0:02:33]}  Bb7 {[%clk 0:02:32]} 15. Rd1 {[%clk 0:02:32]}  Qa5 {[%clk 0:02:28]} 16. Ne4 {[%clk 0:02:24]}  Bxb2 {[%clk 0:02:24]} 17. Qxb2 {[%clk 0:02:25]}  c5 {[%clk 0:02:20]} 18. Rac1 {[%clk 0:02:22]}  Rac8 {[%clk 0:02:16]} 19. Nd6 {[%clk 0:02:20]}  Rc7 {[%clk 0:02:06]} 20. Nxb7 {[%clk 0:02:20]}  Rxb7 {[%clk 0:02:06]} 21. Bxd5 {[%clk 0:02:21]}  exd5 {[%clk 0:02:06]} 22. Rxd5 {[%clk 0:02:21]}  Rc7 {[%clk 0:02:06]} 23. g3 {[%clk 0:02:15]}  Qb6 {[%clk 0:02:00]} 24. Qc3 {[%clk 0:02:07]}  Rfc8 {[%clk 0:01:57]} 25. Qc4 {[%clk 0:02:01]}  h6 {[%clk 0:01:51]} 26. Rcd1 {[%clk 0:01:58]}  Qb4 {[%clk 0:01:48]} 27. Rd8+ {[%clk 0:01:50]}  Kh7 {[%clk 0:01:40]} 28. Rxc8 {[%clk 0:01:47]}  Qxc4 {[%clk 0:01:35]} 29. bxc4 {[%clk 0:01:45]}  Rxc8 {[%clk 0:01:35]} 30. Rd5 {[%clk 0:01:45]}  Kg6 {[%clk 0:01:26]} 31. Kg2 {[%clk 0:01:44]}  Rc6 {[%clk 0:01:22]} 32. h4 {[%clk 0:01:42]}  a5 {[%clk 0:01:20]} 33. a4 {[%clk 0:01:41]}  Rb6 {[%clk 0:01:15]} 34. Rxc5 {[%clk 0:01:40]}  Rb4 {[%clk 0:01:15]} 35. Rxa5 {[%clk 0:01:38]}  Rxc4 {[%clk 0:01:14]} 36. Ra8 {[%clk 0:01:31]}  h5 {[%clk 0:01:10]} 37. a5 {[%clk 0:01:30]}  Ra4 {[%clk 0:01:09]} 38. a6 {[%clk 0:01:30]}  Ra5 {[%clk 0:01:08]} 39. a7 {[%clk 0:01:30]}  Ra4 {[%clk 0:01:08]} 40. Kf3 {[%clk 0:01:27]}  Ra6 {[%clk 0:01:06]} 41. e4 {[%clk 0:01:25]}  Ra2 {[%clk 0:01:05]} 42. Ke3 {[%clk 0:01:24]}  Ra4 {[%clk 0:00:57]} 43. f3 {[%clk 0:01:20]}  Ra3+ {[%clk 0:00:55]} 44. Kf4 {[%clk 0:01:20]}  Ra5 {[%clk 0:00:53]} 45. g4 {[%clk 0:01:19]}  hxg4 {[%clk 0:00:48]} 46. fxg4 {[%clk 0:01:19]}  Kh7 {[%clk 0:00:48]} 47. h5 {[%clk 0:01:12]}  Ra4 {[%clk 0:00:46]} 48. g5 {[%clk 0:01:05]}  Ra5 {[%clk 0:00:40]} 49. h6 {[%clk 0:00:50]}  Ra1 {[%clk 0:00:32]} 50. hxg7 {[%clk 0:00:20]}  Kxg7 {[%clk 0:00:32]} 51. g6 {[%clk 0:00:19]}  fxg6 {[%clk 0:00:20]} 52. e5 {[%clk 0:00:18]}  Rf1+ {[%clk 0:00:16]} 53. Ke4 {[%clk 0:00:18]}  Ra1 {[%clk 0:00:16]} 54. e6 {[%clk 0:00:16]}  Re1+ {[%clk 0:00:08]} 55. Kd5 {[%clk 0:00:15]}  Rd1+ {[%clk 0:00:08]} 56. Ke5 {[%clk 0:00:15]}  Re1+ {[%clk 0:00:08]} 57. Kd6 {[%clk 0:00:16]}  Rd1+ {[%clk 0:00:09]} 58. Ke7 {[%clk 0:00:16]}  Ra1 {[%clk 0:00:10]} 59. Ke8 {[%clk 0:00:14]}  g5 {[%clk 0:00:10]} 60. e7 {[%clk 0:00:13]}  g4 {[%clk 0:00:09]} 61. Kd7 {[%clk 0:00:13]}  Rd1+ {[%clk 0:00:09]} 62. Kc6 {[%clk 0:00:12]}  Rc1+ {[%clk 0:00:08]} 63. Kd5 {[%clk 0:00:12]}  Rd1+ {[%clk 0:00:08]} 64. Kc4 {[%clk 0:00:13]}  Rc1+ {[%clk 0:00:07]} 65. Kd3 {[%clk 0:00:13]}  Rd1+ {[%clk 0:00:05]} 66. Ke2 {[%clk 0:00:12]} 1-0


[Site "https://www.chess.com"]

[Event "Titled Tuesday Blitz May 10 Early 2022"]
[White "Rastbod, Ali"]
[Black "Bintang, Rasyid A. Hidayat"]
[WhiteFideId "12567477"]
[BlackFideId "7105355"]
[WhiteElo "2147"]
[BlackElo "2441"]
[Result "1-0"]
[Round "03"]
[TimeControl "180+1"]
[Date "2022.05.11"]
[WhiteClock "0:00:58"]
[BlackClock "0:01:42"]

1. e4 {[%clk 0:02:56]}  d5 {[%clk 0:02:59]} 2. exd5 {[%clk 0:02:56]}  Nf6 {[%clk 0:02:59]} 3. d4 {[%clk 0:02:50]}  Nxd5 {[%clk 0:02:59]} 4. c4 {[%clk 0:02:50]}  Nb6 {[%clk 0:02:59]} 5. Nc3 {[%clk 0:02:49]}  e5 {[%clk 0:02:59]} 6. Nf3 {[%clk 0:02:00]}  Bg4 {[%clk 0:02:56]} 7. c5 {[%clk 0:01:55]}  N6d7 {[%clk 0:02:53]} 8. Bc4 {[%clk 0:01:50]}  f6 {[%clk 0:02:27]} 9. O-O {[%clk 0:01:45]}  Nc6 {[%clk 0:02:23]} 10. Ng5 {[%clk 0:01:26]}  fxg5 {[%clk 0:02:01]} 11. Qxg4 {[%clk 0:01:24]}  Nf6 {[%clk 0:01:51]} 12. Qxg5 {[%clk 0:01:16]}  exd4 {[%clk 0:01:47]} 13. Re1+ {[%clk 0:01:14]}  Be7 {[%clk 0:01:47]} 14. Qxg7 {[%clk 0:01:08]}  Kd7 {[%clk 0:01:42]} 15. Be6+ {[%clk 0:00:58]} 1-0


[Site "https://www.chess.com"]

[Event "Titled Tuesday Blitz May 10 Early 2022"]
[White "Reprintsev, Alexander"]
[Black "Redzisz, Michal"]
[WhiteFideId "14100541"]
[BlackFideId "21816107"]
[WhiteElo "2108"]
[BlackElo "2004"]
[Result "1-0"]
[Round "03"]
[TimeControl "180+1"]
[Date "2022.05.11"]
[WhiteClock "0:01:58"]
[BlackClock "0:00:56"]

1. e4 {[%clk 0:02:52]}  c5 {[%clk 0:02:58]} 2. b3 {[%clk 0:02:51]}  d5 {[%clk 0:02:53]} 3. exd5 {[%clk 0:02:50]}  Qxd5 {[%clk 0:02:54]} 4. Nc3 {[%clk 0:02:50]}  Qd8 {[%clk 0:02:42]} 5. Bb2 {[%clk 0:02:49]}  Nf6 {[%clk 0:02:42]} 6. Qe2 {[%clk 0:02:49]}  g6 {[%clk 0:02:38]} 7. Ne4 {[%clk 0:02:47]}  Be6 {[%clk 0:02:06]} 8. Nxc5 {[%clk 0:02:46]}  Qb6 {[%clk 0:02:02]} 9. Nxe6 {[%clk 0:02:44]}  fxe6 {[%clk 0:02:03]} 10. Qe3 {[%clk 0:02:38]}  Qd6 {[%clk 0:01:53]} 11. Bc4 {[%clk 0:02:35]}  Kf7 {[%clk 0:01:50]} 12. Nf3 {[%clk 0:02:34]}  h6 {[%clk 0:01:46]} 13. Be5 {[%clk 0:02:29]}  Qb6 {[%clk 0:01:41]} 14. Qxb6 {[%clk 0:02:25]}  axb6 {[%clk 0:01:42]} 15. Bxb8 {[%clk 0:02:25]}  Rxb8 {[%clk 0:01:42]} 16. Ne5+ {[%clk 0:02:25]}  Kg7 {[%clk 0:01:41]} 17. Bxe6 {[%clk 0:02:26]}  Ne8 {[%clk 0:01:26]} 18. Nd7 {[%clk 0:02:20]}  Rd8 {[%clk 0:01:23]} 19. O-O-O {[%clk 0:02:13]}  Nf6 {[%clk 0:01:19]} 20. Nxf8 {[%clk 0:02:10]}  Rhxf8 {[%clk 0:01:19]} 21. f3 {[%clk 0:02:10]}  b5 {[%clk 0:01:14]} 22. Rhe1 {[%clk 0:02:06]}  Rd6 {[%clk 0:01:07]} 23. b4 {[%clk 0:02:01]}  Ra8 {[%clk 0:01:02]} 24. Bb3 {[%clk 0:02:00]}  Kf8 {[%clk 0:01:01]} 25. Re5 {[%clk 0:01:59]}  Ke8 {[%clk 0:00:56]} 26. Rde1 {[%clk 0:01:58]} 1-0


[Site "https://www.chess.com"]

[Event "Titled Tuesday Blitz May 10 Early 2022"]
[White "Riehle, Marco"]
[Black "Sjugirov, Sanan"]
[WhiteFideId "12904392"]
[BlackFideId "4189302"]
[WhiteElo "2462"]
[BlackElo "2602"]
[Result "0-1"]
[Round "03"]
[TimeControl "180+1"]
[Date "2022.05.10"]
[WhiteClock "0:02:25"]
[BlackClock "0:02:06"]

1. e4 {[%clk 0:03:00]}  e5 {[%clk 0:02:53]} 2. Nf3 {[%clk 0:03:00]}  Nc6 {[%clk 0:02:53]} 3. Bc4 {[%clk 0:03:00]}  Bc5 {[%clk 0:02:53]} 4. c3 {[%clk 0:03:00]}  Nf6 {[%clk 0:02:53]} 5. d4 {[%clk 0:03:01]}  exd4 {[%clk 0:02:52]} 6. cxd4 {[%clk 0:03:02]}  Bb4+ {[%clk 0:02:48]} 7. Kf1 {[%clk 0:03:02]}  d5 {[%clk 0:02:37]} 8. exd5 {[%clk 0:03:03]}  Nxd5 {[%clk 0:02:38]} 9. Nc3 {[%clk 0:03:03]}  Bxc3 {[%clk 0:02:35]} 10. bxc3 {[%clk 0:03:03]}  O-O {[%clk 0:02:34]} 11. Ng5 {[%clk 0:03:02]}  Nf6 {[%clk 0:02:24]} 12. Ba3 {[%clk 0:02:52]}  Na5 {[%clk 0:02:07]} 13. Bxf8 {[%clk 0:02:39]}  Nxc4 {[%clk 0:02:07]} 14. Qb3 {[%clk 0:02:25]}  Nd2+ {[%clk 0:02:06]} 0-1


[Site "https://www.chess.com"]

[Event "Titled Tuesday Blitz May 10 Early 2022"]
[White "Risteski, Emil"]
[Black "Needleman, Alejandro"]
[WhiteFideId "15005267"]
[BlackFideId "100730"]
[WhiteElo "2070"]
[BlackElo "2347"]
[Result "1-0"]
[Round "03"]
[TimeControl "180+1"]
[Date "2022.05.11"]
[WhiteClock "0:00:35"]
[BlackClock "0:00:13"]

1. e4 {[%clk 0:03:00]}  c5 {[%clk 0:02:59]} 2. Be2 {[%clk 0:03:00]}  e6 {[%clk 0:02:57]} 3. d3 {[%clk 0:03:01]}  d5 {[%clk 0:02:56]} 4. f4 {[%clk 0:03:01]}  dxe4 {[%clk 0:02:55]} 5. dxe4 {[%clk 0:03:02]}  Qxd1+ {[%clk 0:02:54]} 6. Bxd1 {[%clk 0:03:03]}  Bd7 {[%clk 0:02:54]} 7. c3 {[%clk 0:03:02]}  Bc6 {[%clk 0:02:54]} 8. Bc2 {[%clk 0:03:02]}  Nf6 {[%clk 0:02:53]} 9. Nd2 {[%clk 0:03:01]}  Nbd7 {[%clk 0:02:51]} 10. Ngf3 {[%clk 0:03:00]}  Be7 {[%clk 0:02:46]} 11. a4 {[%clk 0:02:56]}  O-O {[%clk 0:02:44]} 12. e5 {[%clk 0:02:47]}  Nd5 {[%clk 0:02:36]} 13. Ne4 {[%clk 0:02:43]}  f6 {[%clk 0:02:36]} 14. exf6 {[%clk 0:02:42]}  gxf6 {[%clk 0:02:33]} 15. Ke2 {[%clk 0:02:42]}  h6 {[%clk 0:02:28]} 16. Bd2 {[%clk 0:02:23]}  f5 {[%clk 0:02:28]} 17. Nf2 {[%clk 0:02:20]}  Bd6 {[%clk 0:02:29]} 18. Nd3 {[%clk 0:02:18]}  c4 {[%clk 0:02:25]} 19. Nde5 {[%clk 0:02:17]}  Bxe5 {[%clk 0:02:21]} 20. Nxe5 {[%clk 0:02:14]}  Nxe5 {[%clk 0:02:18]} 21. fxe5 {[%clk 0:02:14]}  Kg7 {[%clk 0:02:18]} 22. Rhg1 {[%clk 0:02:12]}  h5 {[%clk 0:02:16]} 23. Raf1 {[%clk 0:02:12]}  Rad8 {[%clk 0:02:10]} 24. h3 {[%clk 0:02:11]}  Rf7 {[%clk 0:01:49]} 25. Bd1 {[%clk 0:02:05]}  Rfd7 {[%clk 0:01:38]} 26. Bg5 {[%clk 0:02:03]}  Ne7 {[%clk 0:01:35]} 27. Bc2 {[%clk 0:01:46]}  Rf8 {[%clk 0:01:17]} 28. g4 {[%clk 0:01:42]}  hxg4 {[%clk 0:01:16]} 29. hxg4 {[%clk 0:01:41]}  Be4 {[%clk 0:00:45]} 30. gxf5 {[%clk 0:00:58]}  Bxc2 {[%clk 0:00:37]} 31. fxe6 {[%clk 0:00:53]}  Bd3+ {[%clk 0:00:32]} 32. Ke1 {[%clk 0:00:45]}  Rxf1+ {[%clk 0:00:24]} 33. Rxf1 {[%clk 0:00:44]}  Rc7 {[%clk 0:00:24]} 34. Rf7+ {[%clk 0:00:44]}  Kg6 {[%clk 0:00:24]} 35. Bxe7 {[%clk 0:00:42]}  Bf5 {[%clk 0:00:19]} 36. Rf6+ {[%clk 0:00:41]}  Kg5 {[%clk 0:00:19]} 37. Bd8 {[%clk 0:00:38]}  Rh7 {[%clk 0:00:16]} 38. e7 {[%clk 0:00:38]}  Bd7 {[%clk 0:00:15]} 39. Rf8 {[%clk 0:00:37]}  Rh1+ {[%clk 0:00:13]} 40. Kf2 {[%clk 0:00:36]}  Rh2+ {[%clk 0:00:13]} 41. Ke3 {[%clk 0:00:37]}  Rxb2 {[%clk 0:00:13]} 42. e8=Q+ {[%clk 0:00:35]} 1-0


[Site "https://www.chess.com"]